bitfinex-derivatives/quotes_SOLF0:USTF0_20251117
["timestamp","ask_amount","ask_price","bid_price","bid_amount"]
[1763389840828,0.05006047,137.44,137.41,3.43534531]
[1763389841033,0.05354843,137.44,137.41,3.42794857]
[1763389841232,0.05354843,137.44,137.41,0.04794857]
[1763389841427,0.05354843,137.44,137.41,3.42794857]
[1763389841642,3.32,137.52,137.41,3.42794857]
[1763389841845,3.32,137.52,137.41,3.38]
[1763389842234,3.32,137.52,137.41,9.9355]
[1763389842636,3.32,137.47,137.45,0.04903461]
[1763389843334,4.78,137.47,137.37,10.45163676]
[1763389843536,3.32,137.46,137.34,7.07163676]
[1763389843745,3.32,137.46,137.35,3.38]
[1763389843944,5.01528372,137.49,137.31,10.45163676]
[1763389843945,3.32,137.43,137.31,10.45163676]
[1763389844140,7.07163676,137.44,137.22,96.36519175]
[1763389844141,3.32,137.4,137.28,7.07163676]
[1763389844445,0.05489962,137.34,137.31,0.04825608]
[1763389844641,3.36651249,137.34,137.31,0.05348689]
[1763389845039,3.36651249,137.34,137.22,90.7]
[1763389845241,3.32,137.34,137.22,10.45163676]
[1763389845637,3.32,137.34,137.23,3.38]
[1763389846140,0.049434,137.3,137.27,0.05268855]
[1763389846341,3.369434,137.3,137.27,0.05268855]
[1763389847042,3.369434,137.3,137.18,5.41003734]
[1763389847246,3.32,137.3,137.18,5.41003734]
[1763389847441,7.07163676,137.29,137.18,5.41003734]
[1763389847747,3.32,137.28,137.18,2.03003734]
[1763389848242,0.0468011,137.24,137.22,0.05135275]
[1763389848448,3.3668011,137.24,137.22,0.05135275]
[1763389849245,0.0468011,137.24,137.22,0.05135275]
[1763389849445,0.0468011,137.24,137.22,3.43135275]
[1763389849643,3.32,137.32,137.22,3.43135275]
[1763389849841,3.32,137.32,137.22,3.38]
[1763389850241,3.32,137.32,137.19,7.07163676]
[1763389850446,3.32,137.32,137.2,3.38]
[1763389850646,3.36613127,137.27,137.25,0.05592857]
[1763389850949,3.36963696,137.27,137.25,0.05592857]
[1763389851141,3.32,137.26,137.18,2.03003734]
[1763389852050,0.04824809,137.23,137.21,0.05015779]
[1763389852353,3.36824809,137.23,137.21,0.05015779]
[1763389854855,0.04824809,137.23,137.21,0.05015779]
[1763389855941,0.04824809,137.23,137.21,3.43015779]
[1763389856147,0.04824809,137.23,137.21,0.05015779]
[1763389856346,3.36824809,137.23,137.21,0.05015779]
[1763389856552,0.04824809,137.23,137.21,0.05015779]
[1763389857051,3.36824809,137.23,137.21,0.05015779]
[1763389857251,0.04824809,137.23,137.21,0.05015779]
[1763389857458,4.55863767,137.3,137.21,10.22179455]
[1763389857653,3.29,137.29,137.21,10.17163676]
[1763389858058,3.29,137.29,137.21,7.07163676]
[1763389858358,3.29,137.29,137.18,9.1016741]
[1763389858561,0.05580636,137.25,137.22,0.04639148]
[1763389859551,0.05580636,137.25,137.22,3.14639148]
[1763389860052,7.07163676,137.35,137.22,3.14639148]
[1763389860053,3.29,137.33,137.24,10.17163676]
[1763389860360,3.29,137.37,137.25,3.1]
[1763389860559,3.29,137.37,137.25,10.17163676]
[1763389860756,1.26808294,137.38,137.22,10.17163676]
[1763389860757,3.29,137.35,137.22,10.17163676]
[1763389861056,0.05359723,137.3,137.28,3.1]
[1763389861265,3.29,137.39,137.29,3.1]
[1763389861456,3.29,137.39,137.31,7.07163676]
[1763389862359,3.29,137.35,137.25,3.1]
[1763389862561,3.29,137.35,137.27,3.1]
[1763389863151,3.29,137.35,137.2,85.09163676]
[1763389863152,3.29,137.41,137.3,3.1]
[1763389863352,0.05463721,137.37,137.36,3.1]
[1763389863558,3.29,137.45,137.37,3.1]
[1763389863866,3.29,137.45,137.35,6.5581]
[1763389864056,3.29,137.45,137.34,10.17163676]
[1763389864252,3.29,137.45,137.33,7.07163676]
[1763389864455,1.26683655,137.5,137.3,7.07163676]
[1763389864456,0.05174706,137.4,137.3,7.07163676]
[1763389864755,3.29,137.39,137.29,3.1]
[1763389864959,3.29,137.42,137.32,3.1]
[1763389865758,0.04751541,137.38,137.36,0.04631643]
[1763389866156,1.26683655,137.5,137.36,0.04631643]
[1763389866157,3.29,137.46,137.37,3.1]
[1763389866361,3.29,137.5,137.4,7.07163676]
[1763389866551,3.29,137.5,137.41,3.1]
[1763389866753,3.29,137.5,137.37,7.07163676]
[1763389866957,3.29,137.5,137.38,3.1]
[1763389867267,0.0559659,137.45,137.43,0.04859598]
[1763389867455,0.04722393,137.45,137.43,0.04859598]
[1763389867650,3.29,137.54,137.44,3.1]
[1763389868067,1.26630642,137.58,137.52,3.1]
[1763389868366,3.29,137.69,137.58,3.1]
[1763389868564,1.26527051,137.67,137.58,3.1]
[1763389868764,3.33993926,137.65,137.62,0.04711011]
[1763389869064,3.29,137.65,137.57,3.1]
[1763389869259,3.34492652,137.65,137.54,12.26907772]
[1763389869565,3.29,137.65,137.51,12.26907772]
[1763389869865,3.29,137.65,137.52,3.1]
[1763389870163,0.05546159,137.6,137.57,0.04762479]
[1763389870359,0.05402391,137.6,137.57,0.04968624]
[1763389870860,3.34402391,137.6,137.57,0.04968624]
[1763389871363,3.29,137.58,137.48,3.1]
[1763389871559,3.29,137.63,137.51,3.1]
[1763389871867,3.29,137.63,137.54,3.1]
[1763389872062,3.29,137.7,137.54,3.1]
[1763389872265,0.05214729,137.63,137.61,0.05569132]
[1763389872462,0.0480191,137.63,137.61,0.05174605]
[1763389872662,0.0480191,137.63,137.61,3.15174605]
[1763389872862,4.55469573,137.74,137.63,3.1]
[1763389873058,3.29,137.81,137.66,3.1]
[1763389873261,4.55442002,137.79,137.69,3.1]
[1763389873468,3.29,137.79,137.69,3.1]
[1763389873862,3.29,137.79,137.73,0.05214826]
[1763389874066,0.05467484,137.75,137.73,0.05214826]
[1763389874370,3.34467484,137.75,137.65,3.1]
[1763389874567,3.29,137.75,137.65,3.1]
[1763389874772,3.29,137.81,137.68,3.1]
[1763389875071,3.29,137.81,137.6,12.26907772]
[1763389875072,3.29,137.81,137.71,3.1]
[1763389875564,3.34413603,137.77,137.75,0.04971543]
[1763389875766,3.33774709,137.77,137.75,0.04739961]
[1763389875958,3.33774709,137.77,137.64,3.1]
[1763389876164,3.29,137.77,137.64,3.1]
[1763389876374,3.15,137.81,137.67,3.12]
[1763389876567,3.15,137.81,137.7,3.12]
[1763389876875,3.15,137.85,137.73,3.12]
[1763389877067,1.26343305,137.88,137.76,3.12]
[1763389877266,3.15,137.9,137.79,3.12]
[1763389877466,3.15,137.94,137.8,3.12]
[1763389877663,1.26276829,137.95,137.84,3.12]
[1763389877869,3.15,137.99,137.84,3.12]
[1763389878065,3.15,137.92,137.9,0.04788965]
[1763389878267,3.15,137.92,137.8,3.12]
[1763389878571,3.15,137.9,137.8,3.12]
[1763389878783,3.15,137.9,137.77,81.46]
[1763389878969,3.15,137.95,137.81,6.5365]
[1763389879275,3.15,137.99,137.88,3.12]
[1763389879869,3.15,137.99,137.84,3.12]
[1763389880068,3.15,137.97,137.84,3.12]
[1763389880270,0.0552151,137.92,137.89,0.05046762]
[1763389880474,0.0552151,137.92,137.89,3.17046762]
[1763389880867,3.15,138.01,137.89,3.17046762]
[1763389881073,8.71620627,138.2,137.89,3.17046762]
[1763389881074,1.26171528,138.08,137.9,3.12]
[1763389881270,1.26171528,138.08,137.95,3.12]
[1763389881466,3.15,138.09,137.95,3.12]
[1763389881871,3.15,138.09,138.01,0.0549116]
[1763389882066,3.15,138.02,137.9,3.12]
[1763389882473,3.15,138.07,137.9,3.12]
[1763389882669,3.15,138.09,137.92,3.12]
[1763389883285,3.15,138.01,137.88,3.12]
[1763389883483,3.15,138.01,137.83,3.12]
[1763389883671,3.15,137.97,137.83,3.12]
[1763389884270,3.15,137.9,137.89,0.04604109]
[1763389884474,0.05360836,137.91,137.88,0.04656535]
[1763389884475,3.20240791,137.91,137.88,0.04656535]
[1763389884679,3.20058751,137.91,137.88,0.05258146]
[1763389885282,3.15,137.89,137.88,0.00258146]
[1763389885674,3.15,137.88,137.71,3.12]
[1763389885984,3.15,137.85,137.71,3.12]
[1763389886278,3.15,137.91,137.73,3.12]
[1763389886671,3.15,137.96,137.81,3.17051893]
[1763389886872,3.15,137.96,137.81,3.12]
[1763389887069,3.15,137.94,137.81,3.12]
[1763389887270,3.15,137.94,137.68,101.7753]
[1763389887271,3.15,137.94,137.76,3.31]
[1763389887582,3.12,137.9,137.76,3.31]
[1763389887787,0.04994329,137.84,137.82,0.04637658]
[1763389888084,3.12,137.83,137.71,3.31]
[1763389888378,35.95954342,137.87,137.71,3.31]
[1763389888583,3.12,137.86,137.67,3.31]
[1763389888876,3.12,137.82,137.67,3.31]
[1763389889072,0.04953909,137.76,137.73,0.04727596]
[1763389889274,0.04836358,137.76,137.73,0.0553763]
[1763389889468,3.16836358,137.76,137.73,0.0553763]
[1763389889685,3.16836358,137.76,137.62,3.31]
[1763389889686,3.12,137.75,137.62,3.31]
[1763389889880,3.12,137.74,137.62,3.31]
[1763389890475,3.12,137.8,137.62,3.31]
[1763389890680,124.0,137.87,137.62,3.31]
[1763389890681,3.12,137.86,137.7,3.36346141]
[1763389890880,3.12,137.86,137.7,3.31]
[1763389891778,90.28,137.91,137.78,3.31]
[1763389892091,90.28,137.91,137.71,32.83954342]
[1763389892092,3.12,137.95,137.8,3.31]
[1763389892290,3.12,138.0,137.8,3.31]
[1763389892589,3.12,138.0,137.81,3.31]
[1763389892771,0.05125826,137.92,137.89,0.05558202]
[1763389892971,3.12,137.91,137.89,0.04580696]
[1763389893176,0.05398946,137.92,137.89,0.04580696]
[1763389893380,0.05398946,137.92,137.89,3.35580696]
[1763389893686,0.05398946,137.92,137.89,0.04580696]
[1763389894071,0.05398946,137.92,137.79,32.83954342]
[1763389894072,3.12,137.91,137.79,3.31]
[1763389894276,3.12,137.91,137.72,3.31]
[1763389894877,3.12,137.89,137.72,3.31]
[1763389895076,3.17130107,137.82,137.79,0.04655769]
[1763389895380,3.1686724,137.82,137.79,0.04763659]
[1763389896080,0.0486724,137.82,137.79,0.04763659]
[1763389896783,3.1686724,137.82,137.67,3.31]
[1763389896979,3.1686724,137.82,137.63,32.83954342]
[1763389896980,3.12,137.81,137.62,3.31]
[1763389897178,32.83954342,137.88,137.62,3.31]
[1763389897179,3.12,137.77,137.62,3.31]
[1763389897580,3.12,137.77,137.51,42.8]
[1763389897581,3.12,137.77,137.64,3.31]
[1763389897887,3.1746615,137.72,137.69,0.04723662]
[1763389898086,3.1746615,137.72,137.59,3.31]
[1763389898087,3.16820207,137.72,137.59,3.31]
[1763389898383,3.12,137.72,137.51,75.63954342]
[1763389898585,3.12,137.7,137.52,3.31]
[1763389898778,32.83954342,137.67,137.52,3.31]
[1763389898985,3.12,137.66,137.52,3.31]
[1763389899486,0.04830226,137.6,137.58,0.05284423]
[1763389899685,0.05471721,137.6,137.58,0.05284423]
[1763389900386,3.17471721,137.6,137.58,0.05284423]
[1763389900580,3.17471721,137.6,137.47,3.31]
[1763389900581,3.12,137.59,137.47,3.31]
[1763389900788,3.12,137.59,137.42,32.83954342]
[1763389900789,3.12,137.59,137.42,36.14954342]
[1763389901085,3.12,137.59,137.42,3.31]
[1763389901491,3.12,137.55,137.37,82.71]
[1763389901692,3.16874341,137.47,137.45,0.05288272]
[1763389901992,3.16815823,137.47,137.45,0.04617552]
[1763389902893,3.12,137.46,137.32,3.31]
[1763389903092,3.12,137.45,137.32,3.31]
[1763389903388,3.12,137.54,137.32,3.31]
[1763389903590,3.12,137.54,137.3,32.83954342]
[1763389903591,3.12,137.54,137.35,3.31]
[1763389903782,0.05101196,137.46,137.44,3.31]
[1763389903979,3.12,137.6,137.44,3.31]
[1763389904191,3.12,137.6,137.41,3.31]
[1763389904887,3.12,137.51,137.49,0.05390251]
[1763389905082,3.17519023,137.51,137.49,0.04694756]
[1763389905482,0.05519023,137.51,137.49,0.04694756]
[1763389905680,3.12,137.56,137.49,0.04694756]
[1763389906488,3.12,137.64,137.49,4.81694756]
[1763389906790,3.12,137.69,137.55,3.35786966]
[1763389906996,3.12,137.69,137.55,3.31]
[1763389907297,3.12,137.69,137.51,3.31]
[1763389907498,3.12,137.69,137.53,3.31]
[1763389907695,34.18,137.74,137.48,3.31]
[1763389907696,3.12,137.67,137.48,3.31]
[1763389907995,0.04659805,137.59,137.56,0.04734175]
[1763389908188,0.05450574,137.59,137.56,3.3652181]
[1763389908594,3.12,137.67,137.57,1.46]
[1763389908790,3.12,137.67,137.5,32.83954342]
[1763389908791,3.12,137.67,137.5,3.31]
[1763389909190,3.12,137.67,137.51,3.31]
[1763389909395,3.12,137.67,137.37,306.0078]
[1763389909396,3.12,137.67,137.52,3.31]
[1763389909598,0.04828017,137.61,137.58,0.04805409]
[1763389909793,0.04828017,137.61,137.58,0.05174744]
[1763389909794,3.17050227,137.61,137.58,0.05174744]
[1763389910186,0.05050227,137.61,137.58,0.05174744]
[1763389910392,3.17050227,137.61,137.58,0.05174744]
[1763389910588,3.17050227,137.61,137.47,3.31]
[1763389910888,3.12,137.61,137.47,3.31]
[1763389911087,3.12,137.61,137.42,3.31]
[1763389911300,3.12,137.59,137.42,3.31]
[1763389911696,3.17514364,137.52,137.49,0.04733093]
[1763389911898,3.16998141,137.52,137.49,0.05200067]
[1763389912096,32.83954342,137.6,137.49,0.05200067]
[1763389912097,3.12,137.62,137.49,3.36200067]
[1763389912303,3.12,137.62,137.5,9.8612]
[1763389912495,3.12,137.62,137.5,3.31]
[1763389912696,3.12,137.67,137.51,3.31]
[1763389912899,3.12,137.67,137.52,3.31]
[1763389913093,0.04981272,137.61,137.58,0.04684481]
[1763389913399,3.12,137.72,137.58,3.36382454]
[1763389913603,3.12,137.72,137.58,3.31]
[1763389913799,3.12,137.72,137.53,3.31]
[1763389914003,86.42315565,137.79,137.53,3.31]
[1763389914004,3.12,137.7,137.53,3.31]
[1763389914392,0.05544469,137.63,137.6,0.0539163]
[1763389914591,0.05046268,137.63,137.53,3.31]
[1763389914900,3.12,137.7,137.57,0.05085944]
[1763389915207,3.12,137.75,137.57,3.31]
[1763389915395,3.12,137.8,137.59,3.31]
[1763389915595,3.12,137.8,137.57,181.7929]
[1763389915596,3.12,137.8,137.65,3.31]
[1763389915996,0.04832039,137.74,137.71,0.05332172]
[1763389916198,3.12,137.87,137.71,3.36510706]
[1763389916393,3.12,137.87,137.71,3.31]
[1763389917205,0.05374644,137.8,137.78,0.04789927]
[1763389917501,3.31673587,137.8,137.78,0.04811065]
[1763389917701,0.04673587,137.8,137.78,0.04811065]
[1763389917897,13.03509908,138.06,137.78,3.38811065]
[1763389917898,3.27,137.9,137.78,3.38811065]
[1763389918106,3.27,137.9,137.78,3.34]
[1763389918902,0.04593096,137.85,137.83,0.04769464]
[1763389919104,0.04962695,137.85,137.83,0.04769464]
[1763389919700,3.27,137.95,137.83,3.38769464]
[1763389919899,3.27,137.95,137.77,3.34]
[1763389920598,3.27,137.94,137.72,3.34]
[1763389920903,3.27,137.83,137.67,3.34]
[1763389921101,3.27,137.82,137.62,3.34]
[1763389921299,3.27,137.82,137.64,3.34]
[1763389921806,3.27,137.99,137.8,3.34]
[1763389921996,3.27,137.99,137.85,3.34]
[1763389922195,3.27,137.99,137.92,32.83954342]
[1763389922405,3.27,138.06,137.96,36.17954342]
[1763389922597,1.26141801,138.07,137.88,32.83954342]
[1763389922598,1.26141801,138.07,138.01,32.83954342]
[1763389922805,3.27,138.16,138.02,3.34]
[1763389923102,3.27,138.22,138.06,32.83954342]
[1763389923505,46.4,138.27,138.13,0.04630827]
[1763389923506,3.32406327,138.15,138.13,0.04630827]
[1763389923704,3.27,138.15,138.06,32.83954342]
[1763389923897,3.31873713,138.15,138.06,32.83954342]
[1763389924102,3.27,138.15,138.06,32.83954342]
[1763389924494,3.27,138.15,138.01,32.83954342]
[1763389924894,3.32495157,138.09,138.07,0.05428891]
[1763389925104,3.32116384,138.09,138.07,0.05017857]
[1763389925499,3.32116384,138.09,137.98,3.34]
[1763389925500,4.76116384,138.09,137.98,3.34]
[1763389925708,3.27,138.09,137.98,3.34]
[1763389926108,3.27,138.09,137.94,3.34]
[1763389926509,3.31863136,138.03,138.0,0.05442307]
[1763389926806,3.32142806,138.03,137.9,3.34]
[1763389927102,3.27,138.03,137.8,36.17954342]
[1763389927306,3.27,138.03,137.81,3.34]
[1763389927510,3.27,138.03,137.85,3.34]
[1763389927708,3.27,138.03,137.93,0.05118965]
[1763389928003,3.27,137.94,137.82,3.34]
[1763389928207,3.27,138.04,137.86,3.34]
[1763389928407,3.27,138.04,137.9,3.34]
[1763389928603,3.27,138.04,137.94,1.26]
[1763389928813,3.27,137.99,137.98,0.04731869]
[1763389929005,0.04590999,138.0,137.97,0.04822489]
[1763389929707,3.27,138.1,137.98,4.78]
[1763389929903,3.27,138.15,138.0,3.34]
[1763389930309,3.27,138.15,138.03,22.17461619]
[1763389930606,3.27,138.15,138.04,3.34]
[1763389930809,0.05505199,138.1,138.08,3.3921067]
[1763389931014,3.27,138.19,138.03,18.83461619]
[1763389931198,3.27,138.19,138.04,3.34]
[1763389931399,3.27,138.28,138.08,3.34]
[1763389931608,3.27,138.28,138.12,3.34]
[1763389931802,3.27,138.28,138.13,3.34]
[1763389932112,0.05057876,138.22,138.19,0.04868344]
[1763389932309,0.05057876,138.22,138.19,0.04845795]
[1763389932310,0.04896259,138.22,138.19,0.04845795]
[1763389932511,0.04896259,138.22,138.19,3.38845795]
[1763389932813,3.27,138.35,138.2,4.78]
[1763389933116,3.27,138.35,138.24,18.83461619]
[1763389933300,83.57,138.41,138.26,3.34]
[1763389933506,3.27,138.46,138.29,18.83461619]
[1763389933707,3.27,138.46,138.3,3.34]
[1763389933903,0.04762737,138.39,138.36,0.05163696]
[1763389934107,3.27,138.46,138.32,3.34]
[1763389934406,3.27,138.53,138.4,3.34]
[1763389934710,3.27,138.6,138.44,3.34]
[1763389935304,3.27,138.6,138.39,3.34]
[1763389935504,18.83461619,138.61,138.41,18.83461619]
[1763389935505,3.27,138.52,138.41,18.83461619]
[1763389935711,3.27,138.52,138.4,18.83461619]
[1763389935903,3.27,138.58,138.41,3.34]
[1763389936404,3.22,138.55,138.41,3.16]
[1763389936610,0.05260444,138.51,138.48,0.04587917]
[1763389937211,22.05461619,138.62,138.48,3.20587917]
[1763389937424,3.22,138.61,138.42,3.16]
[1763389937807,3.22,138.59,138.42,3.16]
[1763389938014,3.22,138.59,138.45,3.16]
[1763389938213,0.05373949,138.53,138.51,0.05176307]
[1763389938509,0.05373949,138.53,138.34,3.16]
[1763389938510,22.05461619,138.52,138.34,3.16]
[1763389938708,3.22,138.51,138.34,3.16]
[1763389938918,124.0,138.69,138.42,3.16]
[1763389939107,3.22,138.62,138.45,18.83461619]
[1763389939310,3.22,138.62,138.45,21.99461619]
[1763389939513,3.22,138.62,138.42,6.5074]
[1763389939514,0.00425988,138.55,138.52,3.21279391]
[1763389939814,3.22,138.67,138.54,3.16]
[1763389940016,18.83461619,138.73,138.58,3.16]
[1763389940017,3.22,138.73,138.58,3.16]
[1763389940215,3.22,138.73,138.6,3.16]
[1763389940723,124.0,138.89,138.65,3.16]
[1763389940724,0.05068813,138.67,138.65,3.16]
[1763389940921,3.22,138.83,138.65,3.16]
[1763389941118,3.22,138.83,138.69,3.16]
[1763389941519,3.22,138.88,138.69,3.16]
[1763389941717,3.22,138.88,138.72,18.83461619]
[1763389941922,3.22,138.88,138.79,0.04613302]
[1763389942116,3.22,138.88,138.73,3.16]
[1763389942117,3.22,138.88,138.82,0.04830838]
[1763389942324,3.22,138.88,138.73,3.16]
[1763389942325,3.22,138.88,138.84,0.04612148]
[1763389942625,3.22,138.88,138.73,3.16]
[1763389943615,3.22,138.81,138.79,0.05024938]
[1763389943926,3.22,138.81,138.62,3.16]
[1763389944132,18.83461619,138.78,138.62,3.16]
[1763389944336,3.22,138.77,138.57,3.16]
[1763389944539,3.22,138.73,138.57,3.16]
[1763389944741,0.05110589,138.66,138.64,0.04999033]
[1763389944944,0.05535813,138.66,138.64,0.05289578]
[1763389945241,0.05535813,138.66,138.46,28.3655]
[1763389945242,3.22,138.64,138.42,3.16]
[1763389945547,3.22,138.7,138.48,3.16]
[1763389945731,3.22,138.68,138.48,3.16]
[1763389946236,0.05101103,138.59,138.57,3.20950262]
[1763389946446,3.22,138.74,138.57,3.16]
[1763389946743,3.22,138.74,138.6,3.16]
[1763389947138,3.22,138.74,138.61,3.16]
[1763389947344,0.04884969,138.69,138.66,0.04879439]
[1763389948539,3.32884969,138.69,138.66,0.04879439]
[1763389948738,3.28,138.67,138.53,3.23]
[1763389948935,3.28,138.67,138.43,25.82]
[1763389948936,3.28,138.65,138.47,18.83461619]
[1763389949142,3.28,138.61,138.44,3.23]
[1763389949340,3.28,138.61,138.48,3.23]
[1763389949740,0.04898802,138.56,138.53,0.05310785]
[1763389950047,3.32898802,138.56,138.53,0.05310785]
[1763389950243,4.72,138.55,138.43,3.23]
[1763389950450,3.28,138.55,138.43,3.23]
[1763389950953,18.83461619,138.59,138.44,3.23]
[1763389951248,0.05028449,138.53,138.5,0.04681067]
[1763389951456,3.28,138.65,138.5,3.27564873]
[1763389951748,3.28,138.65,138.51,22.06461619]
[1763389952045,3.28,138.71,138.56,3.23]
[1763389952235,3.28,138.77,138.6,3.23]
[1763389952549,0.04760407,138.7,138.67,0.04668978]
[1763389952841,3.28,138.77,138.67,3.28385409]
[1763389953048,3.28,138.77,138.67,3.23]
[1763389953342,3.28,138.77,138.63,18.83461619]
[1763389953543,3.28,138.82,138.64,3.23]
[1763389953738,3.28,138.82,138.68,3.23]
[1763389953944,0.05396291,138.76,138.74,0.0455322]
[1763389954140,3.33139798,138.76,138.74,0.0455322]
[1763389954348,0.05139798,138.76,138.74,0.0455322]
[1763389954640,0.05139798,138.76,138.63,3.23]
[1763389954641,4.72,138.75,138.63,3.23]
[1763389954841,3.28,138.75,138.57,3.23]
[1763389955042,3.28,138.75,138.6,3.23]
[1763389955247,40.69461619,138.81,138.64,3.23]
[1763389955248,3.28,138.81,138.64,3.23]
[1763389955544,3.28,138.81,138.68,3.23]
[1763389955841,0.05381319,138.74,138.71,3.27881115]
[1763389956041,18.83461619,139.05,138.71,3.27881115]
[1763389956042,18.83461619,138.94,138.72,3.23]
[1763389956247,3.28,138.94,138.78,3.23]
[1763389956633,3.28,138.94,138.8,22.06461619]
[1763389956847,3.28,138.94,138.76,18.83461619]
[1763389957040,0.05225924,138.86,138.84,0.04878912]
[1763389957246,0.05225924,138.86,138.84,0.05198366]
[1763389957247,0.05381194,138.86,138.84,0.05198366]
[1763389957953,3.28,138.99,138.84,22.11659985]
[1763389958140,3.28,138.99,138.85,3.23]
[1763389958342,3.28,139.05,138.93,3.23]
[1763389958539,3.28,139.1,138.93,3.23]
[1763389958746,3.28,139.06,138.88,22.06461619]
[1763389958949,0.05082997,138.95,138.93,0.04619725]
[1763389959148,0.04551505,138.95,138.93,0.04619725]
[1763389959344,0.04551505,138.95,138.93,3.27619725]
[1763389959941,0.04551505,138.95,138.93,0.04619725]
[1763389960151,0.04551505,138.95,138.93,4.71619725]
[1763389960346,3.28,139.04,138.93,3.27619725]
[1763389960543,22.11461619,139.09,138.93,3.27619725]
[1763389960749,3.28,139.09,138.95,3.23]
[1763389961345,5.31003734,139.0,138.96,0.05259202]
[1763389961552,2.03003734,139.0,138.97,0.04724017]
[1763389961852,2.03003734,139.0,138.97,0.04747]
[1763389962348,2.03003734,139.0,138.97,3.27747]
[1763389962554,3.28,139.09,138.97,3.27747]
[1763389962752,3.28,139.15,139.02,0.04716885]
[1763389962955,3.28,139.15,139.07,0.04555521]
[1763389963652,18.83461619,139.12,138.93,18.83461619]
[1763389963854,3.28,139.11,138.94,3.23]
[1763389964355,3.28,139.06,138.88,3.23]
[1763389964547,0.05087013,138.98,138.96,0.04703014]
[1763389964851,0.05087013,138.98,138.96,0.04733322]
[1763389965249,0.05087013,138.98,138.96,3.27733322]
[1763389965453,3.28,139.11,138.96,3.27733322]
[1763389965642,3.28,139.11,138.96,3.23]
[1763389965847,3.28,139.11,138.98,3.23]
[1763389966044,3.28,139.21,139.05,18.83461619]
[1763389966251,3.28,139.27,139.13,3.23]
[1763389966445,3.28,139.27,139.19,0.04714245]
[1763389966651,3.28,139.32,139.19,0.04714245]
[1763389966857,5.31003734,139.29,139.23,0.04954661]
[1763389967457,2.03003734,139.29,139.23,0.04954661]
[1763389967657,3.28,139.41,139.28,18.83461619]
[1763389968050,3.28,139.46,139.32,22.06461619]
[1763389968358,3.28,139.46,139.33,0.05378893]
[1763389968663,3.28,139.45,139.19,72.12]
[1763389968845,3.28,139.45,139.27,3.23]
[1763389969050,3.28,139.43,139.21,3.23]
[1763389969256,3.28,139.43,139.24,18.83461619]
[1763389969755,3.28,139.43,139.28,18.83461619]
[1763389970054,3.3256321,139.35,139.18,3.23]
[1763389970258,3.28,139.31,139.12,3.23]
[1763389970458,3.28,139.28,139.12,3.23]
[1763389970863,3.28,139.24,139.05,3.23]
[1763389971057,3.33267745,139.16,138.99,22.06461619]
[1763389971252,3.33267745,139.16,139.0,3.23]
[1763389971455,3.28,139.15,139.0,3.23]
[1763389971659,22.11461619,139.12,138.95,22.06461619]
[1763389971859,3.28,139.11,138.96,3.23]
[1763389972254,3.28,139.11,139.02,0.05014883]
[1763389972255,0.0496273,139.05,139.02,0.05014883]
[1763389972454,3.32619226,139.05,139.02,0.05246345]
[1763389972658,0.04619226,139.05,139.02,0.05246345]
[1763389973060,3.28,139.16,139.03,3.23]
[1763389973263,22.11461619,139.16,139.03,3.23]
[1763389973559,3.28,139.22,139.03,3.23]
[1763389973758,18.83461619,139.21,139.04,18.83461619]